[Event "FIDE WCCC Open-08 2024"]
[Site "Montesilvano"]
[Date "2024.11.23"]
[Round "8.31"]
[White "Reclik, Jakub"]
[Black "Petrenko, Tymofii"]
[Result "1/2-1/2"]
[ECO "B76"]
[WhiteElo "1458"]
[BlackElo "1678"]
[Annotator "NA RC"]
[PlyCount "84"]
[EventDate "2024.11.18"]
[EventType "swiss"]
[EventCountry "ITA"]
[SourceTitle "playchess.com"]
[Source "ChessBase"]
[SourceQuality "1"]
[TimeControl "5400+30"]

1. e4 {[%emt 0:00:04]} c5 {[%emt 0:01:44]} 2. Nf3 {[%emt 0:00:10]} d6 {[%emt 0:00:10]} 3. d4 {[%emt 0:00:06]} cxd4 {[%emt 0:00:06]} 4. Nxd4 {[%emt 0:00:10]} Nf6 {[%emt 0:00:05]} 5. Nc3 {[%emt 0:00:10]} g6 {[%emt 0:00:05]} 6. Be3 {[%emt 0:00:10]} Bg7 {[%emt 0:00:06]} 7. f3 {[%emt 0:00:08]} O-O {[%emt 0:00:18]} 8. Qd2 {[%emt 0:00:31]} Nc6 {[%emt 0:02:53]} 9. O-O-O {[%emt 0:00:17]} d5 {[%emt 0:00:05]} 10. Kb1 {[%emt 0:00:52]} a5 {[%emt 0:02:56]} 11. Nxc6 {[%emt 0:03:43]} bxc6 {[%emt 0:00:30]} 12. exd5 {[%emt 0:00:14]} cxd5 {[%emt 0:00:06]} 13. Nxd5 {[%emt 0:00:11]} Nxd5 {[%emt 0:00:39]} 14. Qxd5 {[%emt 0:00:12]} Qc7 {[%emt 0:00:59]} 15. Qxa8 {[%emt 0:18:39]} Bf5 {[%emt 0:00:18]} 16. Qxf8+ {[%emt 0:00:08]} Kxf8 {[%emt 0:00:30]} 17. Bd3 {[%emt 0:00:24]} Be6 {[%emt 0:00:50]} 18. Be4 {[%emt 0:03:52]} f5 {[%emt 0:03:13]} 19. Bd3 {[%emt 0:04:10]} Qb8 {[%emt 0:01:37]} 20. Bc1 {[%emt 0:01:37]} a4 {[%emt 0:01:05]} 21. a3 {[%emt 0:01:34]} Qb7 {[%emt 1:22:45]} 22. Be2 {[%emt 0:00:33]} Kf7 {[%emt 0:00:00]} 23. Rhe1 {[%emt 0:00:57]} Be5 {[%emt 0:00:00]} 24. g3 {[%emt 0:00:29]} Bd6 {[%emt 0:00:00]} 25. Ka1 {[%emt 0:03:30]} Qc6 {[%emt 0:00:00]} 26. Kb1 {[%emt 0:02:13]} Qb6 {[%emt 0:00:00]} 27. Ka1 {[%emt 0:00:21]} Qf2 {[%emt 0:00:00]} 28. g4 {[%emt 0:20:21]} f4 {[%emt 0:00:00]} 29. h3 {[%emt 0:00:22]} Bc7 {[%emt 0:00:00]} 30. Bd2 {[%emt 0:01:37]} Qc5 {[%emt 0:00:00]} 31. Bd3 {[%emt 0:04:10]} Qd5 {[%emt 0:00:00]} 32. Rxe6 {[%emt 0:05:13]} Qxe6 {[%emt 0:00:00]} 33. Re1 {[%emt 0:00:44]} Qb6 {[%emt 0:00:00]} 34. Bb4 {[%emt 0:00:20]} Bd6 {[%emt 0:00:00]} 35. Bc4+ {[%emt 0:00:19]} Kf8 {[%emt 0:00:00]} 36. Bxd6 {[%emt 0:00:33]} Qxd6 {[%emt 0:00:00]} 37. Bd3 {[%emt 0:00:46]} g5 {[%emt 0:00:00]} 38. Rc1 {[%emt 0:02:23]} Qd4 {[%emt 0:00:00]} 39. Bxh7 {[%emt 0:01:06]} Qh8 {[%emt 0:00:00]} 40. Be4 {[%emt 0:00:07]} Qxh3 {[%emt 0:00:00]} 41. c4 {[%emt 0:00:10]} Ke8 {[%emt 0:00:00]} 42. c5 {[%emt 0:00:13]} Kd8 {[%emt 0:10:30]} 1/2-1/2

[Event "FIDE WCCC Open-08 2024"]
[Site "Montesilvano"]
[Date "2024.11.23"]
[Round "8.32"]
[White "Saathvik Chakravarthy Ramayana"]
[Black "Szumiec, Jan"]
[Result "1/2-1/2"]
[ECO "B22"]
[WhiteElo "1466"]
[BlackElo "1678"]
[Annotator "NA RC"]
[PlyCount "51"]
[EventDate "2024.11.18"]
[EventType "swiss"]
[EventCountry "ITA"]
[SourceTitle "playchess.com"]
[Source "ChessBase"]
[SourceQuality "1"]
[TimeControl "5400+30"]

1. e4 {[%emt 0:00:05]} c5 {[%emt 0:00:09]} 2. c3 {[%emt 0:00:16]} Nf6 {[%emt 0:00:07]} 3. e5 {[%emt 0:00:26]} Nd5 {[%emt 1:31:44]} 4. d4 {[%emt 0:00:08]} cxd4 {[%emt 0:00:00]} 5. Nf3 {[%emt 0:00:20]} Nc6 {[%emt 0:00:00]} 6. Bc4 {[%emt 0:00:04]} Nb6 {[%emt 0:00:00]} 7. Bb3 {[%emt 0:00:13]} d5 {[%emt 0:00:00]} 8. exd6 {[%emt 0:00:10]} Qxd6 {[%emt 0:00:00]} 9. O-O {[%emt 0:00:19]} Be6 {[%emt 0:00:00]} 10. Bxe6 {[%emt 0:00:17]} Qxe6 {[%emt 0:00:00]} 11. a4 {[%emt 0:00:12]} Qd7 {[%emt 0:00:00]} 12. a5 {[%emt 0:04:14]} Nd5 {[%emt 0:00:00]} 13. Nxd4 {[%emt 0:11:34]} e6 {[%emt 0:00:00]} 14. a6 {[%emt 0:06:46]} b6 {[%emt 0:00:00]} 15. Nd2 {[%emt 0:03:43]} Nxd4 {[%emt 0:00:00]} 16. cxd4 {[%emt 0:00:18]} Rc8 {[%emt 0:00:00]} 17. Nf3 {[%emt 0:05:40]} Be7 {[%emt 0:00:00]} 18. Ne5 {[%emt 0:03:31]} Qb5 {[%emt 0:00:00]} 19. Qg4 {[%emt 0:05:58]} Bf6 {[%emt 0:00:00]} 20. Re1 {[%emt 0:06:45]} Nb4 {[%emt 0:00:00]} 21. Nxf7 {[%emt 0:05:18]} Kxf7 {[%emt 0:00:00]} 22. Qxe6+ {[%emt 0:00:12]} Kg6 {[%emt 0:00:00]} 23. Qg4+ {[%emt 0:19:17]} Kf7 {[%emt 0:00:00]} 24. Qe6+ {[%emt 0:00:10]} Kg6 {[%emt 0:00:00]} 25. Qg4+ {[%emt 0:01:06]} Kf7 {[%emt 0:00:00]} 26. Qe6+ {[%emt 0:00:07]} 1/2-1/2

[Event "FIDE WCCC Open-08 2024"]
[Site "Montesilvano"]
[Date "2024.11.23"]
[Round "8.35"]
[White "Kalinin, Bogdan"]
[Black "Dzelnik, Robert"]
[Result "1-0"]
[ECO "C53"]
[WhiteElo "1548"]
[BlackElo "1822"]
[Annotator "NA RC"]
[PlyCount "63"]
[EventDate "2024.11.18"]
[EventType "swiss"]
[EventCountry "ITA"]
[SourceTitle "playchess.com"]
[Source "ChessBase"]
[SourceQuality "1"]
[TimeControl "5400+30"]

1. e4 {[%emt 0:00:06]} e5 {[%emt 0:00:05]} 2. Nf3 {[%emt 0:00:07]} Nc6 {[%emt 0:00:07]} 3. Bc4 {[%emt 0:00:05]} Bc5 {[%emt 0:00:05]} 4. O-O {[%emt 0:00:16]} d6 {[%emt 0:02:49]} 5. c3 {[%emt 0:01:14]} Nf6 {[%emt 0:00:50]} 6. d4 {[%emt 0:00:38]} Bb6 {[%emt 0:05:27]} 7. dxe5 {[%emt 0:12:28]} Nxe4 {[%emt 0:03:08]} 8. Bxf7+ {[%emt 0:11:18]} Kxf7 {[%emt 0:04:45]} 9. Qd5+ {[%emt 0:00:10]} Ke8 {[%emt 0:04:04]} 10. Qxe4 {[%emt 0:00:09]} dxe5 {[%emt 0:19:53]} 11. Nxe5 {[%emt 0:08:29]} Qe7 {[%emt 0:13:01]} 12. Re1 {[%emt 0:01:30]} Nxe5 {[%emt 0:05:05]} 13. Qxe5 {[%emt 0:00:56]} Qxe5 {[%emt 0:00:32]} 14. Rxe5+ {[%emt 0:00:07]} Kf7 {[%emt 0:00:13]} 15. Bf4 {[%emt 0:02:39]} Bd7 {[%emt 0:03:39]} 16. Nd2 {[%emt 0:01:14]} Rhf8 {[%emt 0:01:15]} 17. Rae1 {[%emt 0:01:32]} Kg8 {[%emt 0:02:14]} 18. Be3 {[%emt 0:05:32]} Rad8 {[%emt 0:02:48]} 19. Nc4 {[%emt 0:06:30]} Bxe3 {[%emt 0:01:34]} 20. Nxe3 {[%emt 0:00:30]} Bc6 {[%emt 0:00:21]} 21. f3 {[%emt 0:03:43]} Rd2 {[%emt 0:02:14]} 22. Nc4 {[%emt 0:00:40]} Rd5 {[%emt 0:02:06]} 23. a3 {[%emt 0:10:19]} Rf4 {[%emt 0:04:47]} 24. Rxd5 {[%emt 0:03:59]} Bxd5 {[%emt 0:00:15]} 25. Ne5 {[%emt 0:02:08]} g5 {[%emt 0:05:12]} 26. Nd3 {[%emt 0:02:47]} Rf7 {[%emt 0:01:34]} 27. Re5 {[%emt 0:24:54]} Bc4 {[%emt 0:00:28]} 28. Rxg5+ {[%emt 0:00:00]} Kf8 {[%emt 0:00:22]} 29. Ne5 {[%emt 0:00:00]} Rf4 {[%emt 0:00:28]} 30. g3 {[%emt 0:00:00]} Rf6 {[%emt 0:00:31]} 31. Nd7+ {[%emt 0:02:00]} Kf7 {[%emt 0:00:25]} 32. Nxf6 {[%emt 0:00:00]} 1-0

[Event "FIDE WCCC Open-08 2024"]
[Site "Montesilvano"]
[Date "2024.11.23"]
[Round "8.36"]
[White "Kiss, Lorinc Istvan"]
[Black "Le, Khai"]
[Result "0-1"]
[ECO "B38"]
[WhiteElo "1501"]
[BlackElo "1808"]
[Annotator "NA RC"]
[PlyCount "84"]
[EventDate "2024.11.18"]
[EventType "swiss"]
[EventCountry "ITA"]
[SourceTitle "playchess.com"]
[Source "ChessBase"]
[SourceQuality "1"]
[TimeControl "5400+30"]

1. e4 {[%emt 0:00:01]} c5 {[%emt 0:01:04]} 2. Nf3 {[%emt 0:01:59]} Nc6 {[%emt 0:00:55]} 3. d4 {[%emt 0:02:30]} cxd4 {[%emt 0:01:01]} 4. Nxd4 {[%emt 0:02:30]} g6 {[%emt 0:01:00]} 5. c4 {[%emt 0:02:30]} Bg7 {[%emt 0:01:00]} 6. Be3 {[%emt 0:02:30]} Nf6 {[%emt 0:01:00]} 7. Nc3 {[%emt 0:01:37]} O-O {[%emt 0:01:30]} 8. Be2 {[%emt 0:00:28]} d6 {[%emt 0:01:41]} 9. O-O {[%emt 0:00:27]} Bd7 {[%emt 0:01:19]} 10. Qd2 {[%emt 0:00:52]} Rc8 {[%emt 0:01:00]} 11. Rfd1 {[%emt 0:01:12]} Ne5 {[%emt 0:01:30]} 12. b3 {[%emt 0:01:47]} Neg4 {[%emt 0:01:08]} 13. f3 {[%emt 0:02:36]} Nxe3 {[%emt 0:00:52]} 14. Qxe3 {[%emt 0:00:07]} a6 {[%emt 0:01:00]} 15. Rac1 {[%emt 0:01:07]} h5 {[%emt 0:01:30]} 16. b4 {[%emt 0:03:01]} Kh7 {[%emt 0:00:46]} 17. Qf2 {[%emt 0:02:55]} Bh6 {[%emt 0:01:14]} 18. Rc2 {[%emt 0:00:26]} Qb6 {[%emt 0:00:30]} 19. a3 {[%emt 0:01:56]} e5 {[%emt 1:20:00]} 20. Nf5 {[%emt 0:03:11]} Qxf2+ {[%emt 0:00:00]} 21. Kxf2 {[%emt 0:00:13]} gxf5 {[%emt 0:00:00]} 22. Rxd6 {[%emt 0:00:35]} Rc6 {[%emt 0:00:00]} 23. Rxc6 {[%emt 0:03:10]} bxc6 {[%emt 0:00:00]} 24. c5 {[%emt 0:02:27]} Ra8 {[%emt 0:00:00]} 25. Na4 {[%emt 0:00:42]} Be6 {[%emt 0:00:00]} 26. Rb2 {[%emt 0:00:57]} fxe4 {[%emt 0:00:00]} 27. fxe4 {[%emt 0:01:41]} Nxe4+ {[%emt 0:00:00]} 28. Kf3 {[%emt 0:00:17]} Bd5 {[%emt 0:00:00]} 29. Bd3 {[%emt 0:01:11]} f5 {[%emt 0:00:00]} 30. Ke2 {[%emt 0:00:35]} Rg8 {[%emt 0:00:00]} 31. g3 {[%emt 0:00:39]} h4 {[%emt 0:00:00]} 32. Bxe4 {[%emt 0:05:19]} Bxe4 {[%emt 0:00:00]} 33. Nc3 {[%emt 0:00:27]} hxg3 {[%emt 0:00:00]} 34. Nxe4 {[%emt 0:03:17]} fxe4 {[%emt 0:00:00]} 35. hxg3 {[%emt 0:00:44]} Rxg3 {[%emt 0:00:00]} 36. Kf2 {[%emt 0:02:49]} Bf4 {[%emt 0:00:00]} 37. a4 {[%emt 0:00:30]} Ra3 {[%emt 0:00:00]} 38. a5 {[%emt 0:00:11]} Kg6 {[%emt 0:09:30]} 39. Rb1 {[%emt 0:01:04]} Ra2+ {[%emt 0:00:00]} 40. Ke1 {[%emt 0:00:31]} e3 {[%emt 0:00:00]} 41. Rd1 {[%emt 0:00:23]} e2 {[%emt 0:00:00]} 42. Rd6+ {[%emt 0:00:17]} Kf5 {[%emt 0:00:00]} 0-1

[Event "FIDE WCCC Open-08 2024"]
[Site "Montesilvano"]
[Date "2024.11.23"]
[Round "8.37"]
[White "Juzbasic, Marul"]
[Black "Lee, David J"]
[Result "0-1"]
[ECO "C55"]
[WhiteElo "1726"]
[BlackElo "1446"]
[Annotator "NA RC"]
[PlyCount "90"]
[EventDate "2024.11.18"]
[EventType "swiss"]
[EventCountry "ITA"]
[SourceTitle "playchess.com"]
[Source "ChessBase"]
[SourceQuality "1"]
[TimeControl "5400+30"]

1. e4 {[%emt 0:00:02]} e5 {[%emt 0:01:00]} 2. Nf3 {[%emt 0:00:24]} Nc6 {[%emt 0:00:36]} 3. Bc4 {[%emt 0:00:09]} Nf6 {[%emt 0:00:06]} 4. d3 {[%emt 0:00:18]} Be7 {[%emt 0:00:18]} 5. O-O {[%emt 0:00:13]} O-O {[%emt 0:00:06]} 6. Re1 {[%emt 0:00:34]} d6 {[%emt 0:00:34]} 7. a3 {[%emt 0:01:05]} Bg4 {[%emt 0:08:54]} 8. Nbd2 {[%emt 0:05:09]} Qd7 {[%emt 0:04:23]} 9. h3 {[%emt 0:05:14]} Bh5 {[%emt 0:00:13]} 10. Nf1 {[%emt 0:03:22]} Nd4 {[%emt 0:05:04]} 11. N1d2 {[%emt 0:01:04]} Qa4 {[%emt 0:19:27]} 12. Bb3 {[%emt 0:07:28]} Qc6 {[%emt 0:08:37]} 13. c3 {[%emt 1:11:58]} Nxf3+ {[%emt 0:02:58]} 14. Nxf3 {[%emt 0:00:00]} Rad8 {[%emt 0:45:14]} 15. Be3 {[%emt 0:00:00]} a6 {[%emt 0:00:30]} 16. Bg5 {[%emt 0:01:30]} Qb6 {[%emt 0:00:00]} 17. Re3 {[%emt 0:00:00]} h6 {[%emt 0:00:00]} 18. Bxf6 {[%emt 0:00:00]} Bxf6 {[%emt 0:01:30]} 19. Qc2 {[%emt 0:00:00]} c6 {[%emt 0:00:00]} 20. Ba2 {[%emt 0:00:00]} Rfe8 {[%emt 0:00:00]} 21. Rae1 {[%emt 0:00:00]} Bg6 {[%emt 0:00:00]} 22. Nh2 {[%emt 0:00:00]} Kh7 {[%emt 0:00:00]} 23. Ng4 {[%emt 0:00:00]} Bg5 {[%emt 0:00:00]} 24. Rf3 {[%emt 0:00:00]} f6 {[%emt 0:03:00]} 25. b4 {[%emt 0:00:00]} Bh5 {[%emt 0:00:00]} 26. Rd1 {[%emt 0:00:48]} d5 {[%emt 0:00:00]} 27. exd5 {[%emt 0:04:42]} cxd5 {[%emt 0:00:00]} 28. d4+ {[%emt 0:00:00]} e4 {[%emt 0:00:00]} 29. Rg3 {[%emt 0:00:00]} Kh8 {[%emt 0:00:00]} 30. Rf1 {[%emt 0:00:00]} Bf4 {[%emt 0:00:00]} 31. Ne3 {[%emt 0:00:11]} Bxg3 {[%emt 0:00:00]} 32. fxg3 {[%emt 0:00:12]} Qc6 {[%emt 0:00:00]} 33. Nf5 {[%emt 0:01:10]} Rc8 {[%emt 0:00:00]} 34. g4 {[%emt 0:01:18]} Bg6 {[%emt 0:00:00]} 35. Nh4 {[%emt 0:00:12]} Bh7 {[%emt 0:00:00]} 36. Qb3 {[%emt 0:00:52]} Qxc3 {[%emt 0:00:00]} 37. Qxd5 {[%emt 0:00:12]} Qc6 {[%emt 0:00:16]} 38. Qh5 {[%emt 0:00:31]} Qb6 {[%emt 0:00:49]} 39. Kh1 {[%emt 0:00:41]} Qxd4 {[%emt 0:00:14]} 40. Ng6+ {[%emt 0:00:36]} Bxg6 {[%emt 0:00:08]} 41. Qxg6 {[%emt 0:00:08]} Rf8 {[%emt 0:01:51]} 42. Rf5 {[%emt 0:00:30]} Rc1+ {[%emt 0:00:39]} 43. Kh2 {[%emt 0:00:12]} Qd6+ {[%emt 0:00:10]} 44. g3 {[%emt 0:01:00]} Qd2+ {[%emt 0:00:07]} 45. Rf2 {[%emt 0:00:08]} Qxf2# {[%emt 0:00:07]} 0-1

[Event "FIDE WCCC Open-08 2024"]
[Site "Montesilvano"]
[Date "2024.11.23"]
[Round "8.38"]
[White "Cherem, Yoseph"]
[Black "Cronje, Frederick"]
[Result "1-0"]
[ECO "E11"]
[WhiteElo "1634"]
[BlackElo "1434"]
[Annotator "NA RC"]
[PlyCount "57"]
[EventDate "2024.11.18"]
[EventType "swiss"]
[EventCountry "ITA"]
[SourceTitle "playchess.com"]
[Source "ChessBase"]
[SourceQuality "1"]
[TimeControl "5400+30"]

1. d4 Nf6 2. c4 e6 3. Nf3 Bb4+ 4. Nbd2 Ne4 5. e3 f5 6. Bd3 b6 7. Ne5 Bb7 8. Qh5+ g6 9. Nxg6 Nf6 10. Qh4 Rg8 11. Nf4 Bxg2 12. Rg1 Bf3 13. Rxg8+ Nxg8 14. Qxh7 Qg5 15. Ng6 d6 16. Qxg8+ Kd7 17. Nf8+ Kc6 18. Qxg5 f4 19. Qb5+ Kb7 20. Qxb4 Bg4 21. Be4+ d5 22. cxd5 exd5 23. Bxd5+ c6 24. Be4 Na6 25. Qe7+ Kc8 26. f3 Bd7 27. Qxd7+ Kb8 28. Bxc6 Nb4 29. Qd8# 1-0

[Event "FIDE WCCC Open-08 2024"]
[Site "Montesilvano"]
[Date "2024.11.23"]
[Round "8.39"]
[White "Borkowski, Jan"]
[Black "Kortmann, Pedro Reck"]
[Result "1-0"]
[ECO "D32"]
[WhiteElo "1481"]
[BlackElo "1630"]
[Annotator "NA RC"]
[PlyCount "60"]
[EventDate "2024.11.18"]
[EventType "swiss"]
[EventCountry "ITA"]
[SourceTitle "playchess.com"]
[Source "ChessBase"]
[SourceQuality "1"]
[TimeControl "5400+30"]

1. d4 {[%emt 0:00:01]} d5 {[%emt 0:00:04]} 2. c4 {[%emt 0:00:36]} e6 {[%emt 0:00:09]} 3. Nc3 {[%emt 0:00:06]} c5 {[%emt 0:00:11]} 4. cxd5 {[%emt 0:00:49]} exd5 {[%emt 0:00:31]} 5. Nf3 {[%emt 0:00:52]} Nf6 {[%emt 0:00:28]} 6. Bg5 {[%emt 0:00:26]} Be7 {[%emt 0:01:34]} 7. e3 {[%emt 0:02:21]} h6 {[%emt 0:02:01]} 8. Bh4 {[%emt 0:00:15]} g5 {[%emt 0:00:38]} 9. Bg3 {[%emt 0:00:24]} cxd4 {[%emt 0:01:20]} 10. Nxd4 {[%emt 0:00:26]} a6 {[%emt 0:00:31]} 11. Bd3 {[%emt 0:01:24]} Nc6 {[%emt 0:00:33]} 12. Bc2 {[%emt 0:02:15]} Nb4 {[%emt 0:01:41]} 13. Bb3 {[%emt 0:00:56]} Be6 {[%emt 0:00:50]} 14. a3 {[%emt 0:04:40]} Nc6 {[%emt 0:00:12]} 15. Nxe6 {[%emt 0:04:47]} fxe6 {[%emt 0:00:37]} 16. Bc2 {[%emt 0:03:16]} Bd6 {[%emt 0:01:06]} 17. Bg6+ {[%emt 0:01:02]} Kf8 {[%emt 0:03:45]} 18. Qf3 {[%emt 0:02:33]} Bxg3 {[%emt 0:00:53]} 19. Qxg3 {[%emt 0:02:45]} d4 {[%emt 0:02:30]} 20. exd4 {[%emt 0:00:56]} Qxd4 {[%emt 0:03:33]} 21. O-O {[%emt 0:01:03]} Qe5 {[%emt 0:00:55]} 22. Qf3 {[%emt 0:09:19]} Kg7 {[%emt 0:02:22]} 23. Bc2 {[%emt 0:03:27]} Nd4 {[%emt 0:00:49]} 24. Qxb7+ {[%emt 0:00:43]} Kf8 {[%emt 0:01:26]} 25. Qxa8+ {[%emt 0:00:40]} Kg7 {[%emt 0:00:59]} 26. Qb7+ {[%emt 0:00:21]} Kg8 {[%emt 0:00:58]} 27. Bg6 {[%emt 0:01:02]} Rh7 {[%emt 0:01:37]} 28. Bxh7+ {[%emt 0:00:08]} Nxh7 {[%emt 0:00:49]} 29. Qe4 {[%emt 0:00:19]} Qxe4 {[%emt 0:01:54]} 30. Nxe4 {[%emt 0:00:10]} Ne2+ {[%emt 0:00:31]} 1-0

[Event "FIDE WCCC Open-08 2024"]
[Site "Montesilvano"]
[Date "2024.11.23"]
[Round "8.41"]
[White "Melkonyan, Mark"]
[Black "Tuguldur, Baatarchuluun"]
[Result "1-0"]
[ECO "C10"]
[WhiteElo "1445"]
[BlackElo "1590"]
[Annotator "NA RC"]
[PlyCount "87"]
[EventDate "2024.11.18"]
[EventType "swiss"]
[EventCountry "ITA"]
[SourceTitle "playchess.com"]
[Source "ChessBase"]
[SourceQuality "1"]
[TimeControl "5400+30"]

1. e4 {[%emt 0:00:02]} e6 {[%emt 0:00:11]} 2. d4 {[%emt 0:00:06]} d5 {[%emt 0:00:49]} 3. Nd2 {[%emt 0:00:19]} dxe4 {[%emt 0:00:33]} 4. Nxe4 {[%emt 0:00:11]} Nd7 {[%emt 0:00:05]} 5. Bd3 {[%emt 0:00:12]} Ngf6 {[%emt 0:00:12]} 6. Qe2 {[%emt 0:00:20]} c5 {[%emt 0:00:15]} 7. Nf3 {[%emt 0:02:21]} Qa5+ {[%emt 0:01:01]} 8. Bd2 {[%emt 0:00:56]} Qb6 {[%emt 0:00:14]} 9. Bc3 {[%emt 0:05:03]} Be7 {[%emt 0:01:00]} 10. O-O {[%emt 0:03:37]} O-O {[%emt 0:00:59]} 11. dxc5 {[%emt 0:00:39]} Nxc5 {[%emt 0:00:36]} 12. Nxf6+ {[%emt 0:00:54]} Bxf6 {[%emt 0:00:07]} 13. Bxf6 {[%emt 0:02:49]} gxf6 {[%emt 0:00:19]} 14. c3 {[%emt 0:02:34]} Rd8 {[%emt 0:01:24]} 15. Bc2 {[%emt 0:01:13]} f5 {[%emt 0:00:18]} 16. Qe3 {[%emt 0:10:56]} f6 {[%emt 0:01:39]} 17. Qh6 {[%emt 0:03:49]} e5 {[%emt 0:02:25]} 18. Rad1 {[%emt 0:01:46]} Bd7 {[%emt 0:00:24]} 19. g4 {[%emt 0:09:33]} e4 {[%emt 0:00:40]} 20. g5 {[%emt 0:07:03]} Bb5 {[%emt 1:27:19]} 21. gxf6 {[%emt 0:01:12]} Qc7 {[%emt 0:00:00]} 22. Ng5 {[%emt 0:01:32]} Bc4 {[%emt 0:00:00]} 23. b4 {[%emt 0:04:19]} Nd3 {[%emt 0:00:00]} 24. f7+ {[%emt 0:03:22]} Bxf7 {[%emt 0:00:00]} 25. Qxh7+ {[%emt 0:00:09]} Kf8 {[%emt 0:00:00]} 26. Ne6+ {[%emt 0:01:03]} Bxe6 {[%emt 0:00:00]} 27. Qxc7 {[%emt 0:00:11]} Rd7 {[%emt 0:00:00]} 28. Qxd7 {[%emt 0:11:36]} Bxd7 {[%emt 0:00:00]} 29. Bxd3 {[%emt 0:00:25]} exd3 {[%emt 0:00:00]} 30. Rfe1 {[%emt 0:00:44]} Bb5 {[%emt 0:00:00]} 31. Re5 {[%emt 0:00:33]} Bc4 {[%emt 0:00:00]} 32. Rxf5+ {[%emt 0:00:14]} Ke7 {[%emt 0:00:00]} 33. f4 {[%emt 0:02:45]} Rd8 {[%emt 0:00:00]} 34. Re5+ {[%emt 0:04:27]} Kf6 {[%emt 0:00:00]} 35. Rd2 {[%emt 0:00:54]} Rg8+ {[%emt 0:07:30]} 36. Kf2 {[%emt 0:00:50]} Rh8 {[%emt 0:00:00]} 37. Ke3 {[%emt 0:00:27]} a6 {[%emt 0:00:00]} 38. Kd4 {[%emt 0:00:52]} b5 {[%emt 0:00:00]} 39. Kc5 {[%emt 0:00:44]} Rh4 {[%emt 0:00:00]} 40. Re4 {[%emt 0:01:17]} Kf5 {[%emt 0:00:00]} 41. Rxc4 {[%emt 0:00:28]} bxc4 {[%emt 0:00:00]} 42. Kxc4 {[%emt 0:00:05]} Kxf4 {[%emt 0:00:00]} 43. Kxd3 {[%emt 0:00:26]} Kf3 {[%emt 0:00:00]} 44. Kc2 {[%emt 0:00:17]} 1-0

[Event "FIDE WCCC Open-08 2024"]
[Site "Montesilvano"]
[Date "2024.11.23"]
[Round "8.42"]
[White "Glod, Peter"]
[Black "Bakirli, Matin"]
[Result "1-0"]
[ECO "B21"]
[WhiteElo "1409"]
[BlackElo "1578"]
[Annotator "NA RC"]
[PlyCount "53"]
[EventDate "2024.11.18"]
[EventType "swiss"]
[EventCountry "ITA"]
[SourceTitle "playchess.com"]
[Source "ChessBase"]
[SourceQuality "1"]
[TimeControl "5400+30"]

1. e4 {[%emt 0:00:02]} c5 {[%emt 0:00:03]} 2. d4 {[%emt 0:00:11]} cxd4 {[%emt 0:00:02]} 3. c3 {[%emt 0:00:08]} dxc3 {[%emt 0:00:04]} 4. Nxc3 {[%emt 0:00:09]} Nc6 {[%emt 0:00:04]} 5. Nf3 {[%emt 0:00:07]} d6 {[%emt 0:00:34]} 6. Bc4 {[%emt 0:03:04]} e6 {[%emt 0:00:31]} 7. O-O {[%emt 0:00:08]} Nf6 {[%emt 0:00:27]} 8. Qe2 {[%emt 0:00:14]} Be7 {[%emt 0:00:22]} 9. Rd1 {[%emt 0:00:21]} Bd7 {[%emt 0:00:19]} 10. Bb5 {[%emt 0:00:43]} Qc7 {[%emt 0:06:28]} 11. Bg5 {[%emt 0:03:37]} O-O {[%emt 0:06:01]} 12. Rac1 {[%emt 1:27:46]} a6 {[%emt 0:01:56]} 13. Ba4 {[%emt 0:00:00]} b5 {[%emt 0:09:20]} 14. Bb3 {[%emt 0:00:00]} Rfe8 {[%emt 0:11:03]} 15. Qd2 {[%emt 0:00:00]} b4 {[%emt 0:01:41]} 16. Nd5 {[%emt 0:00:00]} exd5 {[%emt 0:01:40]} 17. exd5 {[%emt 0:00:00]} Ne4 {[%emt 0:00:28]} 18. Qf4 {[%emt 0:00:00]} Qb6 {[%emt 0:05:14]} 19. dxc6 {[%emt 0:00:00]} Qxf2+ {[%emt 0:00:32]} 20. Kh1 {[%emt 0:00:00]} Bxg5 {[%emt 0:00:13]} 21. Qxf7+ {[%emt 0:00:00]} Kh8 {[%emt 0:00:05]} 22. cxd7 {[%emt 0:00:00]} Rf8 {[%emt 0:01:13]} 23. Rc8 {[%emt 0:00:00]} Raxc8 {[%emt 0:06:19]} 24. dxc8=R {[%emt 0:00:00]} Rxc8 {[%emt 0:00:36]} 25. Nxg5 {[%emt 0:00:00]} Qe3 {[%emt 0:02:14]} 26. Qg8+ {[%emt 0:00:00]} Rxg8 {[%emt 0:02:33]} 27. Nf7# {[%emt 0:00:00]} 1-0